fUSD/lending_fUSD_20251024
["ID","MTS","AMOUNT","RATE_DAILY","PERIOD"]
[392305897,1761322338587,-500.0,0.00042739,30]
[392305898,1761322338600,-601.83,0.00042739,30]
[392305899,1761322338610,-621.62398059,0.00042739,30]
[392305900,1761322338621,-610.23,0.00042739,30]
[392305901,1761322338631,-732.62,0.00042739,30]
[392305902,1761322338641,-523.68,0.00042739,30]
[392305903,1761322338652,-500.0,0.00042739,30]
[392305904,1761322338662,-500.0,0.00042739,30]
[392305905,1761322338673,-600.0,0.00042739,30]
[392305906,1761322338683,-500.0,0.00042739,30]
[392305907,1761322338693,-762.88,0.00042739,30]
[392305908,1761322338703,-626.64,0.00042739,30]
[392305909,1761322338713,-500.0,0.00042739,30]
[392305910,1761322338723,-895.22,0.00042739,30]
[392305911,1761322338733,-500.0,0.00042739,30]
[392305912,1761322338748,-500.0,0.00042739,30]
[392305913,1761322338758,-500.0,0.00042739,30]
[392305914,1761322338768,-821.0,0.00042739,30]
[392305915,1761322338779,-500.0,0.00042739,30]
[392305916,1761322338790,-500.0,0.00042739,30]
[392305917,1761322338800,-564.45,0.00042739,30]
[392305918,1761322338810,-500.0,0.00042739,30]
[392305919,1761322338823,-500.0,0.00042739,30]
[392305920,1761322338833,-500.0,0.00042739,30]
[392305921,1761322338843,-500.0,0.00042739,30]
[392305922,1761322338854,-500.0,0.00042739,30]
[392305923,1761322338864,-500.0,0.00042739,30]
[392305924,1761322338874,-558.27,0.00042739,30]
[392305925,1761322338884,-911.49,0.00042739,30]
[392305926,1761322338894,-500.0,0.00042739,30]
[392305927,1761322338904,-500.0,0.00042739,30]
[392305928,1761322338914,-491.24747095,0.00042739,30]
[392305929,1761322338925,-500.0,0.00042739,30]
[392305930,1761322338935,-500.0,0.00042739,30]
[392305931,1761322338945,-500.0,0.00042739,30]
[392305932,1761322338955,-645.37,0.00042739,30]
[392305933,1761322338965,-500.0,0.00042739,30]
[392305934,1761322338975,-500.0,0.00042739,30]
[392305935,1761322338985,-598.87931781,0.00042739,30]
[392305936,1761322338995,-654.32,0.00042739,30]
[392305937,1761322339005,-500.0,0.00042739,30]
[392305938,1761322339015,-1087.75,0.00042739,30]
[392305939,1761322339026,-618.14,0.00042739,30]
[392305940,1761322339037,-597.11,0.00042739,30]
[392305941,1761322339047,-756.12,0.00042739,30]
[392305942,1761322339058,-601.75,0.00042739,30]
[392305943,1761322339069,-500.0,0.00042739,30]
[392305944,1761322339080,-320.29316388,0.00042739,30]
[392305945,1761322339091,-500.0,0.00042739,30]
[392305946,1761322339101,-712.8,0.00042739,30]
[392305947,1761322339112,-500.0,0.00042739,30]
[392305948,1761322339123,-500.0,0.00042739,30]
[392305949,1761322339134,-555.24,0.00042739,30]
[392305950,1761322339145,-540.6,0.00042739,30]
[392305951,1761322339155,-215.65625218,0.00042739,30]
[392305952,1761322339166,-652.9,0.00042739,30]
[392305953,1761322339176,-647.27,0.00042739,30]
[392305954,1761322339187,-500.0,0.00042739,30]
[392305955,1761322339198,-500.0,0.00042739,30]
[392305956,1761322339208,-500.0,0.00042739,30]
[392305957,1761322339218,-571.05,0.00042739,30]
[392305958,1761322339228,-500.0,0.00042739,30]
[392305959,1761322339238,-327.44329505,0.00042739,30]
[392305960,1761322339248,-500.0,0.00042739,30]
[392305961,1761322339258,-500.0,0.00042739,30]
[392305962,1761322339268,-756.91,0.00042739,30]
[392305963,1761322339280,-522.74,0.00042739,30]
[392305964,1761322339291,-632.46,0.00042739,30]
[392305965,1761322339302,-500.0,0.00042739,30]
[392305966,1761322339312,-500.0,0.00042739,30]
[392305967,1761322339324,-500.0,0.00042739,30]
[392305968,1761322339334,-500.0,0.00042739,30]
[392305969,1761322339344,-711.07,0.00042739,30]
[392305970,1761322339354,-500.0,0.00042739,30]
[392305971,1761322339365,-500.0,0.00042739,30]
[392305972,1761322339375,-739.05,0.00042739,30]
[392305973,1761322339385,-500.0,0.00042739,30]
[392305974,1761322339395,-500.0,0.00042739,30]
[392305975,1761322339405,-602.18,0.00042739,30]
[392305976,1761322339416,-500.0,0.00042739,30]
[392305977,1761322339426,-786.39,0.00042739,30]
[392305978,1761322339437,-500.0,0.00042739,30]
[392305979,1761322339447,-300.0,0.00042739,2]
[392305980,1761322339459,-726.2,0.00042739,30]
[392305981,1761322339470,-500.0,0.00042739,30]
[392305982,1761322339480,-589.03,0.00042739,30]
[392305983,1761322339492,-660.65,0.00042739,30]
[392305984,1761322339502,-771.99,0.00042739,30]
[392305985,1761322339512,-500.0,0.00042739,30]
[392305986,1761322339522,-500.0,0.00042739,30]
[392305987,1761322339533,-712.13,0.00042739,30]
[392305988,1761322339544,-741.67,0.00042739,30]
[392305989,1761322339554,-692.09,0.00042739,30]
[392305990,1761322339567,-506.74,0.00042739,30]
[392305991,1761322339579,-500.0,0.00042739,30]
[392305992,1761322339590,-614.31581828,0.00042739,30]
[392305993,1761322339601,-992.81,0.00042739,30]
[392305994,1761322339611,-500.0,0.00042739,30]
[392305995,1761322339622,-500.0,0.00042739,30]
[392305996,1761322339633,-500.0,0.00042739,30]
[392305997,1761322339643,-834.39,0.00042739,30]
[392305998,1761322339653,-597.68,0.00042739,30]
[392305999,1761322339664,-852.93,0.00042739,30]
[392306000,1761322339674,-500.0,0.00042739,30]
[392306001,1761322339684,-730.33,0.00042739,30]
[392306002,1761322339695,-500.0,0.00042739,30]
[392306003,1761322339705,-500.0,0.00042739,30]
[392306004,1761322339715,-500.0,0.00042739,30]
[392306005,1761322339725,-500.0,0.00042739,30]
[392306006,1761322339735,-804.87,0.00042739,30]
[392306007,1761322339749,-500.0,0.00042739,30]
[392306008,1761322339759,-500.0,0.00042739,30]
[392306009,1761322339768,-1592.15,0.00042739,30]
[392306010,1761322339778,-957.33,0.00042739,30]
[392306011,1761322339788,-600.0,0.00042739,30]
[392306012,1761322339798,-500.0,0.00042739,30]
[392306013,1761322339808,-500.0,0.00042739,30]
[392306014,1761322339819,-500.0,0.00042739,30]
[392306015,1761322339829,-500.0,0.00042739,30]
[392306016,1761322339839,-500.0,0.00042739,30]
[392306017,1761322339849,-500.0,0.00042739,30]
[392306018,1761322339859,-500.0,0.00042739,30]
[392306019,1761322339870,-533.69,0.00042739,30]
[392306020,1761322339880,-575.82,0.00042739,30]
[392306021,1761322339891,-543.13,0.00042739,30]
[392306022,1761322339901,-500.0,0.00042739,30]
[392306023,1761322339911,-705.53,0.00042739,30]
[392306024,1761322339922,-500.0,0.00042739,30]
[392306025,1761322339931,-500.0,0.00042739,30]
[392306026,1761322339942,-500.0,0.00042739,30]
[392306027,1761322339954,-500.0,0.00042739,30]
[392306028,1761322340201,-500.0,0.00042739,30]
[392306029,1761322340218,-600.0,0.00042739,30]
[392306030,1761322340228,-637.51,0.00042739,30]
[392306031,1761322340238,-500.0,0.00042739,30]
[392306032,1761322340249,-721.76,0.00042739,30]
[392306033,1761322340259,-505.27340977,0.00042739,30]
[392306034,1761322340269,-500.0,0.00042739,30]
[392306035,1761322340280,-500.0,0.00042739,30]
[392306036,1761322340289,-835.57,0.00042739,30]
[392306037,1761322340299,-500.0,0.00042739,30]
[392306038,1761322340309,-500.0,0.00042739,30]
[392306039,1761322340319,-500.0,0.00042739,30]
[392306040,1761322340328,-500.0,0.00042739,30]
[392306041,1761322340339,-752.46,0.00042739,30]
[392306042,1761322340349,-500.0,0.00042739,30]
[392306043,1761322340359,-500.0,0.00042739,30]
[392306044,1761322340369,-500.0,0.00042739,30]
[392306045,1761322340380,-500.0,0.00042739,30]
[392306046,1761322340390,-1181.61,0.00042739,30]
[392306047,1761322340400,-500.0,0.00042739,30]
[392306048,1761322340410,-590.26,0.00042739,30]
[392306049,1761322340420,-24520.78,0.00042739,30]
[392306050,1761322340430,-500.0,0.00042739,120]
[392306051,1761322340440,-500.0,0.00042739,30]
[392306052,1761322340450,-597.68,0.00042739,30]
[392306053,1761322340459,-2227.55,0.00042739,30]
[392306054,1761322340469,-500.0,0.00042739,30]
[392306055,1761322340479,-500.0,0.00042739,30]
[392306056,1761322340489,-500.0,0.00042739,30]
[392306057,1761322340499,-386.47006094,0.00042739,30]
[392306058,1761322340509,-635.68,0.00042739,30]
[392306059,1761322340519,-518.98,0.00042739,30]
[392306060,1761322340530,-500.0,0.00042739,30]
[392306061,1761322340540,-500.0,0.00042739,30]
[392306062,1761322340551,-500.0,0.00042739,30]
[392306063,1761322340561,-500.0,0.00042739,30]
[392306064,1761322340571,-500.0,0.00042739,30]
[392306065,1761322340581,-500.0,0.00042739,30]
[392306066,1761322340591,-500.0,0.00042739,30]
[392306067,1761322340601,-1049.8,0.00042739,30]
[392306068,1761322340610,-500.0,0.00042739,30]
[392306069,1761322340620,-678.75,0.00042739,30]
[392306070,1761322340631,-500.0,0.00042739,30]
[392306071,1761322340641,-675.92,0.00042739,30]
[392306072,1761322340651,-500.0,0.00042739,30]
[392306073,1761322340662,-500.0,0.00042739,30]
[392306074,1761322340672,-500.0,0.00042739,30]
[392306075,1761322340683,-500.0,0.00042739,30]
[392306076,1761322340693,-769.84,0.00042739,30]
[392306077,1761322340704,-643.28,0.00042739,30]
[392306078,1761322340714,-772.75,0.00042739,30]
[392306079,1761322340724,-500.0,0.00042739,30]
[392306080,1761322340735,-174.84457771,0.00042739,30]
[392306081,1761322340751,-500.0,0.00042739,30]
[392306082,1761322340762,-500.0,0.00042739,30]
[392306083,1761322340772,-592.37,0.00042739,30]
[392306084,1761322340782,-500.0,0.00042739,30]
[392306085,1761322340795,-711.48,0.00042739,30]
[392306086,1761322340805,-664.9,0.00042739,30]
[392306087,1761322340815,-562.25857138,0.00042739,30]
[392306088,1761322340826,-500.0,0.00042739,30]
[392306089,1761322340837,-3293.92,0.00042739,30]
[392306090,1761322340847,-651.98,0.00042739,30]
[392306091,1761322340858,-526.79371833,0.00042739,30]
[392306092,1761322340869,-555.16,0.00042739,30]
[392306093,1761322340880,-1314.62,0.00042739,30]
[392306094,1761322340891,-500.0,0.00042739,30]
[392306095,1761322340902,-574.28,0.00042739,30]
[392306096,1761322340912,-500.0,0.00042739,30]
[392306097,1761322340923,-500.0,0.00042739,30]
[392306098,1761322340934,-530.89,0.00042739,30]
[392306099,1761322340944,-500.0,0.00042739,30]
[392306100,1761322340954,-500.0,0.00042739,30]
[392306101,1761322340965,-16.36814824,0.00042739,30]
[392306102,1761322341590,-454.457686,0.00040104,120]
[392306103,1761322341601,-500.0,0.00041369,30]
[392306104,1761322341611,-500.0,0.00041643,30]
[392306105,1761322341622,-1094.31,0.00041917,30]
[392306106,1761322341633,-762.28,0.00041917,30]
[392306107,1761322341643,-500.0,0.00042191,30]
[392306108,1761322341654,-567.57,0.00042465,30]
[392306109,1761322341665,-500.0,0.00042465,30]
[392306110,1761322341675,-483.63185176,0.00042739,30]
[392306111,1761322341684,-612.78,0.00042739,30]
[392306112,1761322341694,-500.0,0.00042739,30]
[392306113,1761322341704,-571.0,0.00042739,30]
[392306114,1761322341713,-552.59488681,0.00042739,30]
[392306115,1761322341725,-277.69511319,0.00042739,30]
[392306116,1761322341735,-945.03,0.00042739,30]
[392306117,1761322341749,-500.0,0.00042739,30]
[392306118,1761322341759,-1033.26,0.00042739,30]
[392306119,1761322341769,-663.7,0.00042739,30]
[392306120,1761322341780,-1023.75,0.00042739,30]
[392306121,1761322341791,-500.0,0.00042739,30]
[392306122,1761322341800,-500.0,0.00042739,30]
[392306123,1761322341810,-696.08,0.00042739,30]
[392306124,1761322341821,-641.73,0.00042739,30]
[392306125,1761322341831,-500.0,0.00042739,30]
[392306126,1761322341841,-500.0,0.00042739,30]
[392306127,1761322341851,-500.0,0.00042739,30]
[392306128,1761322341861,-579.17,0.00042739,30]
[392306129,1761322341871,-513.45,0.00042739,30]
[392306130,1761322341881,-500.0,0.00042739,30]
[392306131,1761322341891,-669.12,0.00042739,30]
[392306132,1761322341901,-500.0,0.00042739,30]
[392306133,1761322341911,-516.46,0.00042739,30]
[392306134,1761322341921,-501.88,0.00042739,30]
[392306135,1761322341931,-704.55,0.00042739,30]
[392306136,1761322341941,-641.27,0.00042739,30]
[392306137,1761322341951,-793.21,0.00042739,30]
[392306138,1761322341960,-444.98088267,0.00042739,30]
[392306139,1761322341971,-564.0,0.00042739,30]
[392306140,1761322341980,-681.34,0.00042739,30]
[392306141,1761322341990,-256.29153562,0.00042739,30]
[392306142,1761322342000,-500.0,0.00042739,30]
[392306143,1761322342010,-500.0,0.00042739,30]
[392306144,1761322342022,-583.52,0.00042739,30]
[392306145,1761322342031,-720.15,0.00042739,30]
[392306146,1761322342041,-500.0,0.00042739,30]
[392306147,1761322342051,-416.8461179,0.00042739,30]
[392306148,1761322342061,-500.0,0.00042739,30]
[392306149,1761322342071,-522.17,0.00042739,30]
[392306150,1761322342080,-500.0,0.00042739,30]
[392306151,1761322342090,-553.64,0.00042739,30]
[392306152,1761322342099,-500.0,0.00042739,30]
[392306153,1761322342109,-500.0,0.00042739,30]
[392306154,1761322342118,-500.0,0.00042739,30]
[392306155,1761322342127,-500.0,0.00042739,30]
[392306156,1761322342137,-500.0,0.00042739,30]
[392306157,1761322342147,-500.0,0.00042739,30]
[392306158,1761322342157,-500.0,0.00042739,30]
[392306159,1761322342167,-500.0,0.00042739,30]
[392306160,1761322342177,-500.0,0.00042739,30]
[392306161,1761322342186,-500.0,0.00042739,30]
[392306162,1761322342195,-533.39276155,0.00042739,30]
[392306163,1761322342205,-500.0,0.00042739,30]
[392306164,1761322342214,-500.0,0.00042739,30]
[392306165,1761322342223,-3165.94,0.00042739,30]
[392306166,1761322342233,-577.34,0.00042739,30]
[392306167,1761322342243,-500.0,0.00042739,30]
[392306168,1761322342252,-500.0,0.00042739,30]
[392306169,1761322342262,-781.42,0.00042739,30]
[392306170,1761322342271,-500.0,0.00042739,30]
[392306171,1761322342280,-592.04,0.00042739,30]
[392306172,1761322342289,-500.0,0.00042739,30]
[392306173,1761322342298,-507.17,0.00042739,30]
[392306174,1761322342307,-500.0,0.00042739,30]
[392306175,1761322342317,-500.0,0.00042739,30]
[392306176,1761322342328,-202.32477001,0.00042739,30]
[392306177,1761322342339,-627.51,0.00042739,30]
[392306178,1761322342349,-500.0,0.00042739,30]
[392306179,1761322342359,-658.05,0.00042739,30]
[392306180,1761322342368,-500.0,0.00042739,30]
[392306181,1761322342378,-503.15112926,0.00042739,30]
[392306182,1761322342388,-43111.76,0.00042739,30]
[392306183,1761322342398,-500.0,0.00042739,30]
[392306184,1761322342407,-824.03,0.00042739,30]
[392306185,1761322342417,-572.74,0.00042739,30]
[392306186,1761322342428,-707.49,0.00042739,30]
[392306187,1761322342438,-500.0,0.00042739,2]
[392306188,1761322342448,-371.97497548,0.00042739,30]
[392306189,1761322342457,-1143.07,0.00042739,30]
[392306190,1761322342468,-560.87,0.00042739,30]
[392306191,1761322342479,-500.0,0.00042739,120]
[392306192,1761322342489,-500.0,0.00042739,30]
[392306193,1761322342498,-500.0,0.00042739,30]
[392306194,1761322342508,-500.0,0.00042739,30]
[392306195,1761322342517,-596.94,0.00042739,30]
[392306196,1761322342527,-654.5,0.00042739,30]
[392306197,1761322342537,-507.69,0.00042739,30]
[392306198,1761322342547,-500.0,0.00042739,30]
[392306199,1761322342556,-976.73,0.00042739,30]
[392306200,1761322342566,-526.28,0.00042739,30]
[392306201,1761322342576,-766.16,0.00042739,30]
[392306202,1761322342586,-551.3947534,0.00042739,30]
[392306203,1761322342596,-500.0,0.00042739,30]
[392306204,1761322342605,-500.0,0.00042739,30]
[392306205,1761322342615,-347.31986767,0.00042739,30]
[392306206,1761322342624,-500.0,0.00042739,30]
[392306207,1761322342634,-598.92,0.00042739,30]
[392306208,1761322342643,-843.03,0.00042739,30]
[392306209,1761322342653,-500.0,0.00042739,30]
[392306210,1761322342663,-547.11,0.00042739,30]
[392306211,1761322342673,-905.81,0.00042739,30]
[392306212,1761322342683,-649.83,0.00042739,30]
[392306213,1761322342692,-605.46,0.00042739,30]
[392306214,1761322342702,-500.0,0.00042739,30]
[392306215,1761322342711,-500.0,0.00042739,30]
[392306216,1761322342720,-500.0,0.00042739,30]
[392306217,1761322342817,-500.0,0.00042739,30]
[392306218,1761322342828,-500.0,0.00042739,30]
[392306219,1761322342838,-675.1,0.00042739,30]
[392306220,1761322342847,-500.0,0.00042739,30]
[392306221,1761322342856,-603.25359435,0.00042739,30]
[392306222,1761322342866,-500.0,0.00042739,30]
[392306223,1761322342876,-818.3,0.00042739,30]
[392306224,1761322342886,-500.0,0.00042739,30]
[392306225,1761322342895,-523.51331957,0.00042739,30]
[392306226,1761322342904,-500.0,0.00042739,30]
[392306227,1761322342914,-500.0,0.00042739,30]
[392306228,1761322342923,-554.2,0.00042739,30]
[392306229,1761322342933,-500.0,0.00042739,30]
[392306230,1761322342942,-851.07,0.00042739,30]
[392306231,1761322342952,-500.0,0.00042739,30]
[392306232,1761322342962,-500.0,0.00042739,30]
[392306233,1761322342971,-500.0,0.00042739,30]
[392306234,1761322342980,-634.48,0.00042739,30]
[392306235,1761322342990,-500.0,0.00042739,30]
[392306236,1761322342999,-943.35,0.00042739,30]
[392306237,1761322343008,-500.0,0.00042739,30]
[392306238,1761322343019,-500.0,0.00042739,30]
[392306239,1761322343028,-500.0,0.00042739,30]
[392306240,1761322343038,-500.0,0.00042739,30]
[392306241,1761322343048,-500.0,0.00042739,30]
[392306242,1761322343058,-726.59,0.00042739,30]
[392306243,1761322343068,-500.0,0.00042739,30]
[392306244,1761322343078,-500.0,0.00042739,30]
[392306245,1761322343087,-500.0,0.00042739,30]
[392306246,1761322343096,-530.52,0.00042739,30]
[392306247,1761322343106,-554.24,0.00042739,30]
[392306248,1761322343116,-500.0,0.00042739,30]
[392306249,1761322343126,-500.0,0.00042739,30]
[392306250,1761322343136,-534.6,0.00042739,30]
[392306251,1761322343146,-500.0,0.00042739,30]
[392306252,1761322343156,-703.61,0.00042739,30]
[392306253,1761322343166,-500.0,0.00042739,30]
[392306254,1761322343176,-619.86,0.00042739,30]
[392306255,1761322343187,-500.0,0.00042739,30]
[392306256,1761322343197,-500.0,0.00042739,30]
[392306257,1761322343207,-540.26,0.00042739,30]
[392306258,1761322343217,-506.89,0.00042739,30]
[392306259,1761322343227,-500.0,0.00042739,30]
[392306260,1761322343238,-500.0,0.00042739,30]
[392306261,1761322343248,-500.0,0.00042739,30]
[392306262,1761322343258,-500.0,0.00042739,30]
[392306263,1761322343270,-500.0,0.00042739,30]
[392306264,1761322343280,-500.0,0.00042739,30]
[392306265,1761322343290,-500.0,0.00042739,30]
[392306266,1761322343300,-500.0,0.00042739,30]
[392306267,1761322343311,-730.1,0.00042739,30]
[392306268,1761322343322,-500.0,0.00042739,30]
[392306269,1761322343331,-176.16744986,0.00042739,30]
[392306270,1761322343341,-500.0,0.00042739,30]
[392306271,1761322343351,-500.0,0.00042739,30]
[392306272,1761322343361,-396.92684041,0.00042739,30]
[392306273,1761322343372,-581.74,0.00042739,30]
[392306274,1761322343382,-500.0,0.00042739,30]
[392306275,1761322343391,-500.0,0.00042739,30]
[392306276,1761322343400,-604.04,0.00042739,30]
[392306277,1761322343410,-500.0,0.00042739,30]
[392306278,1761322343421,-611.69,0.00042739,30]
[392306279,1761322343430,-500.0,0.00042739,30]
[392306280,1761322343440,-500.0,0.00042739,30]
[392306281,1761322343450,-513.05,0.00042739,30]
[392306282,1761322343460,-696.18,0.00042739,30]
[392306283,1761322343469,-500.0,0.00042739,30]
[392306284,1761322343479,-1807.7,0.00042739,30]
[392306285,1761322343489,-500.0,0.00042739,30]
[392306286,1761322343499,-500.0,0.00042739,2]
[392306287,1761322343508,-500.0,0.00042739,30]
[392306288,1761322343518,-500.0,0.00042739,30]
[392306289,1761322343527,-500.0,0.00042739,30]
[392306290,1761322343537,-1380.28,0.00042739,30]
[392306291,1761322343547,-606.24,0.00042739,30]
[392306292,1761322343557,-300.0,0.00042739,2]
[392306293,1761322343567,-783.69,0.00042739,30]
[392306294,1761322343577,-500.0,0.00042739,30]
[392306295,1761322343587,-806.84,0.00042739,30]
[392306296,1761322343598,-500.0,0.00042739,30]
[392306297,1761322343608,-2341.55,0.00042739,30]
[392306298,1761322343618,-500.0,0.00042739,30]
[392306299,1761322343627,-500.0,0.00042739,30]
[392306300,1761322343637,-475.03559111,0.00042739,30]
[392306301,1761322343646,-500.0,0.00042739,30]
[392306302,1761322343655,-500.0,0.00042739,30]
[392306303,1761322343665,-716.52,0.00042739,30]
[392306304,1761322343674,-660.17,0.00042739,30]
[392306305,1761322343684,-531.64,0.00042739,30]
[392306306,1761322343693,-500.0,0.00042739,30]
[392306307,1761322343703,-538.15,0.00042739,30]
[392306308,1761322343712,-500.0,0.00042767,30]
[392306309,1761322343722,-46968.78511204,0.00042799,2]
[392306310,1761322343732,-69914.92046124,0.000428,120]
[392306311,1761322343743,-762.12,0.000428,14]
[392306312,1761322343755,-800.0,0.0004288,120]
[392306313,1761322343765,-300.0,0.000429,15]
[392306314,1761322343775,-160.56398268,0.00042947,17]
[392306315,1761322343785,-507.35966576,0.00042948,2]
[392306316,1761322343795,-152.25,0.00042984,30]
[392306317,1761322343804,-1000.0,0.00043,120]
[392306318,1761322343814,-460.13612514,0.00043,120]
[392306319,1761322343826,-2530.0,0.00043,120]
[392306320,1761322343836,-1871.0,0.00043,120]
[392306321,1761322343846,-250.0,0.00043,120]
[392306322,1761322343855,-557.64,0.00043,30]
[392306323,1761322343865,-1003.0,0.00043,30]
[392306324,1761322343875,-150.991584,0.00043013,30]
[392306325,1761322343884,-234.859181,0.00043013,30]
[392306326,1761322343894,-808.712269,0.00043013,30]
[392306327,1761322343903,-277.693017,0.00043013,30]
[392306328,1761322343913,-500.0,0.00043013,30]
[392306329,1761322343922,-500.0,0.00043013,30]
[392306330,1761322343932,-500.0,0.00043013,30]
[392306331,1761322343941,-500.0,0.00043013,30]
[392306332,1761322343950,-622.47,0.00043013,30]
[392306333,1761322343959,-500.0,0.00043013,30]
[392306334,1761322343969,-509.02,0.00043013,30]
[392306335,1761322343979,-516.35,0.00043013,30]
[392306336,1761322343989,-500.0,0.00043013,30]
[392306337,1761322343998,-825.82,0.00043013,30]
[392306338,1761322344008,-500.0,0.00043013,30]
[392306339,1761322344017,-500.0,0.00043013,30]
[392306340,1761322344027,-500.0,0.00043013,30]
[392306341,1761322344036,-500.0,0.00043013,30]
[392306342,1761322344046,-500.0,0.00043013,30]
[392306343,1761322344055,-500.0,0.00043013,30]
[392306344,1761322344065,-500.0,0.00043013,30]
[392306345,1761322344075,-607.61,0.00043013,30]
[392306346,1761322344084,-500.0,0.00043013,30]
[392306347,1761322344094,-500.0,0.00043013,30]
[392306348,1761322344103,-510.24,0.00043013,30]
[392306349,1761322344113,-500.0,0.00043013,30]
[392306350,1761322344122,-500.0,0.00043013,30]
[392306351,1761322344131,-500.0,0.00043013,30]
[392306352,1761322344141,-500.0,0.00043013,30]
[392306353,1761322344150,-500.0,0.00043013,30]
[392306354,1761322344160,-500.0,0.00043013,30]
[392306355,1761322344171,-500.0,0.00043013,30]
[392306356,1761322344181,-500.0,0.00043013,30]
[392306357,1761322344190,-644.18,0.00043013,30]
[392306358,1761322344200,-500.0,0.00043013,30]
[392306359,1761322344209,-500.0,0.00043013,30]
[392306360,1761322344219,-626.86,0.00043013,30]
[392306361,1761322344229,-769.96,0.00043013,30]
[392306362,1761322344239,-500.0,0.00043013,30]
[392306363,1761322344249,-538.58,0.00043013,30]
[392306364,1761322344258,-500.0,0.00043013,30]
[392306365,1761322344268,-500.0,0.00043013,30]
[392306366,1761322344277,-500.0,0.00043013,30]
[392306367,1761322344287,-546.81378044,0.00043013,30]
[392306368,1761322344296,-500.0,0.00043013,30]
[392306369,1761322344306,-801.91,0.00043013,30]
[392306370,1761322344316,-500.0,0.00043013,30]
[392306371,1761322344326,-500.0,0.00043013,30]
[392306372,1761322344335,-515.08,0.00043013,30]
[392306373,1761322344345,-627.53,0.00043013,30]
[392306374,1761322344355,-631.49,0.00043013,30]
[392306375,1761322344364,-500.0,0.00043013,30]
[392306376,1761322344374,-500.0,0.00043013,30]
[392306377,1761322344384,-858.53,0.00043013,30]
[392306378,1761322344394,-189.03041823,0.00043013,30]
[392306379,1761322344404,-500.0,0.00043013,2]
[392306380,1761322344414,-500.0,0.00043013,30]
[392306381,1761322344423,-261.8676964,0.00043013,30]
[392306382,1761322344433,-500.0,0.00043013,30]
[392306383,1761322344443,-500.0,0.00043013,30]
[392306384,1761322344452,-500.0,0.00043013,30]
[392306385,1761322344461,-635.93,0.00043013,30]
[392306386,1761322344471,-500.0,0.00043013,30]
[392306387,1761322344480,-500.0,0.00043013,30]
[392306388,1761322344491,-500.0,0.00043013,30]
[392306389,1761322344501,-741.25,0.00043013,30]
[392306390,1761322344511,-692.25,0.00043013,30]
[392306391,1761322344521,-633.45,0.00043013,30]
[392306392,1761322344530,-500.0,0.00043013,30]
[392306393,1761322344540,-500.0,0.00043013,30]
[392306394,1761322344550,-384.42840412,0.00043013,30]
[392306395,1761322344559,-682.78,0.00043013,30]
[392306396,1761322344568,-500.0,0.00043013,30]